[Event "Titled Tuesday Blitz March 14 Late 2023"]
[White "Sreyas Payyappat"]
[Black "Chabris, Christopher"]
[WhiteFideId "46674969"]
[BlackFideId "2005263"]
[WhiteElo "2083"]
[BlackElo "2219"]
[Result "1-0"]
[Round "10"]
[TimeControl "180+2"]
[Date "2023.03.14"]
[WhiteClock "0:01:17"]
[BlackClock "0:00:02"]

1. e4 {[%clk 0:03:00]}  c5 {[%clk 0:02:59]} 2. Nf3 {[%clk 0:03:00]}  d6 {[%clk 0:02:59]} 3. d4 {[%clk 0:03:01]}  cxd4 {[%clk 0:02:59]} 4. Nxd4 {[%clk 0:03:02]}  Nf6 {[%clk 0:03:00]} 5. Nc3 {[%clk 0:03:03]}  a6 {[%clk 0:03:00]} 6. h4 {[%clk 0:03:02]}  Nc6 {[%clk 0:02:56]} 7. h5 {[%clk 0:02:59]}  h6 {[%clk 0:02:50]} 8. Be2 {[%clk 0:02:58]}  e5 {[%clk 0:02:45]} 9. Nb3 {[%clk 0:02:57]}  Be6 {[%clk 0:02:42]} 10. Be3 {[%clk 0:02:56]}  Be7 {[%clk 0:02:40]} 11. Qd2 {[%clk 0:02:53]}  Rc8 {[%clk 0:02:37]} 12. O-O-O {[%clk 0:02:52]}  Na5 {[%clk 0:02:29]} 13. f3 {[%clk 0:02:44]}  Nc4 {[%clk 0:02:21]} 14. Bxc4 {[%clk 0:02:40]}  Rxc4 {[%clk 0:02:22]} 15. g4 {[%clk 0:02:40]}  Nd7 {[%clk 0:02:02]} 16. Rhg1 {[%clk 0:02:17]}  b5 {[%clk 0:01:38]} 17. g5 {[%clk 0:02:10]}  hxg5 {[%clk 0:01:37]} 18. Bxg5 {[%clk 0:02:09]}  Nf6 {[%clk 0:01:06]} 19. Bxf6 {[%clk 0:01:57]}  Bxf6 {[%clk 0:01:05]} 20. Qxd6 {[%clk 0:01:46]}  Qxd6 {[%clk 0:00:56]} 21. Rxd6 {[%clk 0:01:47]}  Rxh5 {[%clk 0:00:53]} 22. Rxa6 {[%clk 0:01:44]}  b4 {[%clk 0:00:41]} 23. Nb5 {[%clk 0:01:44]}  Ke7 {[%clk 0:00:29]} 24. Ra7+ {[%clk 0:01:40]}  Kf8 {[%clk 0:00:23]} 25. Rd1 {[%clk 0:01:21]}  g6 {[%clk 0:00:15]} 26. Nd6 {[%clk 0:01:18]}  Rc6 {[%clk 0:00:10]} 27. Ra8+ {[%clk 0:01:18]}  Kg7 {[%clk 0:00:07]} 28. Ne8+ {[%clk 0:01:18]}  Kh6 {[%clk 0:00:05]} 29. Nxf6 {[%clk 0:01:19]}  Rh2 {[%clk 0:00:04]} 30. Rh8+ {[%clk 0:01:17]}  Kg7 {[%clk 0:00:03]} 31. Rxh2 {[%clk 0:01:18]}  Kxf6 {[%clk 0:00:03]} 32. Rf2 {[%clk 0:01:17]}  Kg5 {[%clk 0:00:03]} 33. f4+ {[%clk 0:01:16]}  exf4 {[%clk 0:00:02]} 34. Nd4 {[%clk 0:01:17]} 1-0


[Site "https://www.chess.com"]

[Event "Titled Tuesday Blitz March 14 Late 2023"]
[White "Manu_ChessExcelsior"]
[Black "Heinemann, Josefine"]
[BlackFideId "12900460"]
[WhiteElo "2056"]
[BlackElo "2342"]
[Result "0-1"]
[Round "10"]
[TimeControl "180+2"]
[Date "2023.03.14"]
[WhiteClock "0:00:28"]
[BlackClock "0:00:43"]

1. e4 {[%clk 0:02:59]}  c6 {[%clk 0:02:55]} 2. d4 {[%clk 0:02:58]}  d5 {[%clk 0:02:54]} 3. e5 {[%clk 0:02:58]}  Bf5 {[%clk 0:02:52]} 4. Bd3 {[%clk 0:02:58]}  Bxd3 {[%clk 0:02:47]} 5. Qxd3 {[%clk 0:02:59]}  e6 {[%clk 0:02:47]} 6. c3 {[%clk 0:02:55]}  Nd7 {[%clk 0:02:40]} 7. Ne2 {[%clk 0:02:54]}  c5 {[%clk 0:02:33]} 8. O-O {[%clk 0:02:52]}  a6 {[%clk 0:02:31]} 9. Nd2 {[%clk 0:02:40]}  h5 {[%clk 0:02:28]} 10. f4 {[%clk 0:02:07]}  Nh6 {[%clk 0:02:21]} 11. Nf3 {[%clk 0:02:08]}  Nf5 {[%clk 0:02:21]} 12. Be3 {[%clk 0:02:00]}  Be7 {[%clk 0:02:11]} 13. Bf2 {[%clk 0:02:00]}  h4 {[%clk 0:02:03]} 14. g4 {[%clk 0:01:53]}  hxg3 {[%clk 0:02:01]} 15. hxg3 {[%clk 0:01:54]}  Qb6 {[%clk 0:01:52]} 16. dxc5 {[%clk 0:01:43]}  Bxc5 {[%clk 0:01:51]} 17. Ned4 {[%clk 0:01:42]}  Nh6 {[%clk 0:01:30]} 18. b4 {[%clk 0:01:30]}  Bxd4 {[%clk 0:01:22]} 19. Bxd4 {[%clk 0:01:29]}  Qc7 {[%clk 0:01:22]} 20. Kg2 {[%clk 0:01:16]}  Nb6 {[%clk 0:01:20]} 21. Rh1 {[%clk 0:01:10]}  Nc4 {[%clk 0:01:20]} 22. Nd2 {[%clk 0:01:08]}  Nxd2 {[%clk 0:01:07]} 23. Qxd2 {[%clk 0:01:08]}  Kd7 {[%clk 0:01:08]} 24. Bc5 {[%clk 0:01:00]}  b6 {[%clk 0:01:00]} 25. Bd6 {[%clk 0:01:00]}  Qc4 {[%clk 0:01:00]} 26. Qe3 {[%clk 0:00:48]}  Nf5 {[%clk 0:00:51]} 27. Qxb6 {[%clk 0:00:42]}  Qe2+ {[%clk 0:00:51]} 28. Qf2 {[%clk 0:00:42]}  Ne3+ {[%clk 0:00:50]} 29. Kg1 {[%clk 0:00:33]}  Rxh1+ {[%clk 0:00:48]} 30. Kxh1 {[%clk 0:00:33]}  Rh8+ {[%clk 0:00:49]} 31. Kg1 {[%clk 0:00:33]}  Rh1+ {[%clk 0:00:46]} 32. Kxh1 {[%clk 0:00:33]}  Qxf2 {[%clk 0:00:46]} 33. Rg1 {[%clk 0:00:31]}  Ng4 {[%clk 0:00:42]} 34. Rg2 {[%clk 0:00:29]}  Qf1+ {[%clk 0:00:42]} 35. Rg1 {[%clk 0:00:28]}  Qf3+ {[%clk 0:00:42]} 36. Rg2 {[%clk 0:00:28]}  Ne3 {[%clk 0:00:43]} 0-1


[Site "https://www.chess.com"]

[Event "Titled Tuesday Blitz March 14 Late 2023"]
[White "Campelo, Leandro Fabricio"]
[Black "Zamorano, Jorge"]
[WhiteFideId "2103346"]
[BlackFideId "173770"]
[WhiteElo "2070"]
[BlackElo "2331"]
[Result "0-1"]
[Round "10"]
[TimeControl "180+2"]
[Date "2023.03.14"]
[WhiteClock "0:01:51"]
[BlackClock "0:02:23"]

1. e4 {[%clk 0:02:51]}  c5 {[%clk 0:02:59]} 2. Nf3 {[%clk 0:02:50]}  d6 {[%clk 0:03:00]} 3. d4 {[%clk 0:02:50]}  cxd4 {[%clk 0:03:01]} 4. Nxd4 {[%clk 0:02:51]}  Nf6 {[%clk 0:03:01]} 5. Nc3 {[%clk 0:02:51]}  a6 {[%clk 0:03:01]} 6. Rg1 {[%clk 0:02:52]}  e5 {[%clk 0:03:01]} 7. Nb3 {[%clk 0:02:52]}  Be6 {[%clk 0:03:01]} 8. g4 {[%clk 0:02:52]}  d5 {[%clk 0:03:01]} 9. exd5 {[%clk 0:02:53]}  Nxd5 {[%clk 0:03:02]} 10. Nxd5 {[%clk 0:02:53]}  Qxd5 {[%clk 0:03:02]} 11. Qxd5 {[%clk 0:02:52]}  Bxd5 {[%clk 0:03:03]} 12. Be3 {[%clk 0:02:53]}  Nc6 {[%clk 0:03:04]} 13. Be2 {[%clk 0:02:53]}  O-O-O {[%clk 0:03:04]} 14. O-O-O {[%clk 0:02:54]}  Be7 {[%clk 0:03:00]} 15. Bb6 {[%clk 0:02:53]}  Rd7 {[%clk 0:03:00]} 16. Nc5 {[%clk 0:02:53]}  Bxc5 {[%clk 0:03:00]} 17. Bxc5 {[%clk 0:02:53]}  Kc7 {[%clk 0:03:01]} 18. c3 {[%clk 0:02:51]}  Bxa2 {[%clk 0:02:26]} 19. Rxd7+ {[%clk 0:02:51]}  Kxd7 {[%clk 0:02:27]} 20. Rd1+ {[%clk 0:02:51]}  Kc8 {[%clk 0:02:25]} 21. c4 {[%clk 0:02:28]}  Na5 {[%clk 0:02:26]} 22. g5 {[%clk 0:01:55]}  Nb3+ {[%clk 0:02:23]} 23. Kc2 {[%clk 0:01:51]}  Nxc5 {[%clk 0:02:23]} 0-1


[Site "https://www.chess.com"]

[Event "Titled Tuesday Blitz March 14 Late 2023"]
[White "Perske, Thore"]
[Black "Fule, Simon"]
[WhiteFideId "12902195"]
[BlackFideId "787515"]
[WhiteElo "2336"]
[BlackElo "2385"]
[Result "1-0"]
[Round "10"]
[TimeControl "180+2"]
[Date "2023.03.14"]
[WhiteClock "0:00:56"]
[BlackClock "0:00:01"]

1. e4 {[%clk 0:03:00]}  e5 {[%clk 0:02:59]} 2. Nf3 {[%clk 0:03:00]}  Nc6 {[%clk 0:02:59]} 3. Bb5 {[%clk 0:03:01]}  a6 {[%clk 0:02:59]} 4. Ba4 {[%clk 0:03:01]}  Nf6 {[%clk 0:02:59]} 5. O-O {[%clk 0:03:01]}  Be7 {[%clk 0:02:59]} 6. d3 {[%clk 0:03:01]}  b5 {[%clk 0:02:57]} 7. Bb3 {[%clk 0:03:01]}  O-O {[%clk 0:02:57]} 8. Nc3 {[%clk 0:03:01]}  d6 {[%clk 0:02:55]} 9. a3 {[%clk 0:03:01]}  Na5 {[%clk 0:02:52]} 10. Ba2 {[%clk 0:03:01]}  c5 {[%clk 0:02:53]} 11. Nd5 {[%clk 0:03:00]}  Nxd5 {[%clk 0:02:43]} 12. Bxd5 {[%clk 0:02:59]}  Rb8 {[%clk 0:02:44]} 13. b4 {[%clk 0:02:59]}  Nb7 {[%clk 0:02:41]} 14. Be3 {[%clk 0:02:57]}  Qc7 {[%clk 0:02:37]} 15. c3 {[%clk 0:02:54]}  Be6 {[%clk 0:02:36]} 16. Qb3 {[%clk 0:02:53]}  Bd7 {[%clk 0:02:22]} 17. Rfc1 {[%clk 0:02:49]}  Nd8 {[%clk 0:02:22]} 18. h3 {[%clk 0:02:39]}  Kh8 {[%clk 0:02:21]} 19. c4 {[%clk 0:02:04]}  f5 {[%clk 0:02:00]} 20. cxb5 {[%clk 0:01:49]}  axb5 {[%clk 0:01:59]} 21. bxc5 {[%clk 0:01:36]}  dxc5 {[%clk 0:02:00]} 22. Qc3 {[%clk 0:01:36]}  fxe4 {[%clk 0:01:45]} 23. dxe4 {[%clk 0:01:30]}  Bxh3 {[%clk 0:01:10]} 24. Bxc5 {[%clk 0:01:23]}  Bc8 {[%clk 0:00:21]} 25. Qxe5 {[%clk 0:01:13]}  Qxe5 {[%clk 0:00:16]} 26. Nxe5 {[%clk 0:01:14]}  Bxc5 {[%clk 0:00:14]} 27. Rxc5 {[%clk 0:01:14]}  Be6 {[%clk 0:00:14]} 28. Rb1 {[%clk 0:01:12]}  Re8 {[%clk 0:00:11]} 29. Rbxb5 {[%clk 0:01:10]}  Rxb5 {[%clk 0:00:10]} 30. Rxb5 {[%clk 0:01:11]}  Bxd5 {[%clk 0:00:10]} 31. Rxd5 {[%clk 0:01:11]}  Nb7 {[%clk 0:00:10]} 32. a4 {[%clk 0:01:10]}  h5 {[%clk 0:00:09]} 33. a5 {[%clk 0:01:09]}  Re6 {[%clk 0:00:08]} 34. f3 {[%clk 0:01:08]}  Kh7 {[%clk 0:00:08]} 35. Kf2 {[%clk 0:01:08]}  Kh6 {[%clk 0:00:08]} 36. Ke3 {[%clk 0:01:07]}  Ra6 {[%clk 0:00:07]} 37. Nc4 {[%clk 0:01:07]}  g5 {[%clk 0:00:06]} 38. e5 {[%clk 0:01:03]}  Kg6 {[%clk 0:00:06]} 39. Ke4 {[%clk 0:01:02]}  h4 {[%clk 0:00:06]} 40. Rb5 {[%clk 0:00:59]}  Ra7 {[%clk 0:00:03]} 41. Kd5 {[%clk 0:00:57]}  Nd8 {[%clk 0:00:01]} 42. Rb6+ {[%clk 0:00:56]} 1-0


[Site "https://www.chess.com"]

[Event "Titled Tuesday Blitz March 14 Late 2023"]
[White "Becham, Khalid"]
[Black "Reprintsev, Alexander"]
[WhiteFideId "9000275"]
[BlackFideId "14100541"]
[WhiteElo "2081"]
[BlackElo "2229"]
[Result "1-0"]
[Round "10"]
[TimeControl "180+2"]
[Date "2023.03.14"]
[WhiteClock "0:00:41"]
[BlackClock "0:00:02"]

1. d4 {[%clk 0:02:37]}  d5 {[%clk 0:02:21]} 2. Bg5 {[%clk 0:02:29]}  Nc6 {[%clk 0:02:20]} 3. Nf3 {[%clk 0:02:28]}  f6 {[%clk 0:02:19]} 4. Bh4 {[%clk 0:02:25]}  Nh6 {[%clk 0:02:19]} 5. e3 {[%clk 0:02:25]}  Nf5 {[%clk 0:02:18]} 6. Bg3 {[%clk 0:02:24]}  h5 {[%clk 0:02:18]} 7. Nh4 {[%clk 0:02:19]}  Nxh4 {[%clk 0:02:14]} 8. Bxh4 {[%clk 0:02:19]}  g5 {[%clk 0:02:14]} 9. Be2 {[%clk 0:02:17]}  gxh4 {[%clk 0:02:05]} 10. Bxh5+ {[%clk 0:02:17]}  Kd7 {[%clk 0:02:05]} 11. Nc3 {[%clk 0:02:11]}  e6 {[%clk 0:02:05]} 12. e4 {[%clk 0:02:06]}  Bb4 {[%clk 0:01:48]} 13. exd5 {[%clk 0:02:06]}  Bxc3+ {[%clk 0:01:48]} 14. bxc3 {[%clk 0:02:07]}  exd5 {[%clk 0:01:43]} 15. Qg4+ {[%clk 0:02:06]}  Kd6 {[%clk 0:01:40]} 16. Qf4+ {[%clk 0:02:02]}  Ke7 {[%clk 0:01:40]} 17. Bf3 {[%clk 0:01:56]}  Qd6 {[%clk 0:01:38]} 18. Qd2 {[%clk 0:01:53]}  Bf5 {[%clk 0:01:31]} 19. O-O {[%clk 0:01:52]}  Rag8 {[%clk 0:01:25]} 20. Rab1 {[%clk 0:01:49]}  Nd8 {[%clk 0:01:12]} 21. Rfe1+ {[%clk 0:01:41]}  Kd7 {[%clk 0:01:10]} 22. Qe2 {[%clk 0:01:41]}  Kc8 {[%clk 0:01:03]} 23. Qb5 {[%clk 0:01:40]}  c6 {[%clk 0:01:02]} 24. Qa5 {[%clk 0:01:40]}  Kb8 {[%clk 0:01:00]} 25. Rb3 {[%clk 0:01:34]}  Be4 {[%clk 0:00:54]} 26. Ra3 {[%clk 0:01:18]}  a6 {[%clk 0:00:48]} 27. Bxe4 {[%clk 0:01:17]}  dxe4 {[%clk 0:00:44]} 28. Rxe4 {[%clk 0:01:18]}  h3 {[%clk 0:00:40]} 29. g3 {[%clk 0:01:18]}  Re8 {[%clk 0:00:39]} 30. Qf5 {[%clk 0:01:10]}  Re7 {[%clk 0:00:27]} 31. Rb3 {[%clk 0:01:05]}  Rhe8 {[%clk 0:00:26]} 32. Rxe7 {[%clk 0:01:03]}  Qxe7 {[%clk 0:00:25]} 33. Qxh3 {[%clk 0:01:01]}  Qe1+ {[%clk 0:00:22]} 34. Kg2 {[%clk 0:01:01]}  Qe4+ {[%clk 0:00:21]} 35. Kg1 {[%clk 0:01:00]}  Qxc2 {[%clk 0:00:21]} 36. Qd7 {[%clk 0:00:56]}  Re1+ {[%clk 0:00:13]} 37. Kg2 {[%clk 0:00:56]}  Qe4+ {[%clk 0:00:14]} 38. f3 {[%clk 0:00:52]}  Qe2+ {[%clk 0:00:13]} 39. Kh3 {[%clk 0:00:51]}  Qe6+ {[%clk 0:00:14]} 40. Qxe6 {[%clk 0:00:50]}  Nxe6 {[%clk 0:00:14]} 41. Kg4 {[%clk 0:00:50]}  Kc7 {[%clk 0:00:14]} 42. Kf5 {[%clk 0:00:50]}  Nd8 {[%clk 0:00:12]} 43. Kxf6 {[%clk 0:00:48]}  Re2 {[%clk 0:00:12]} 44. h4 {[%clk 0:00:48]}  Re3 {[%clk 0:00:12]} 45. f4 {[%clk 0:00:48]}  Rxg3 {[%clk 0:00:12]} 46. h5 {[%clk 0:00:48]}  Rh3 {[%clk 0:00:10]} 47. h6 {[%clk 0:00:48]}  Rxh6+ {[%clk 0:00:09]} 48. Kg5 {[%clk 0:00:49]}  Rd6 {[%clk 0:00:08]} 49. f5 {[%clk 0:00:49]}  Rd5 {[%clk 0:00:08]} 50. Kg6 {[%clk 0:00:49]}  Kd6 {[%clk 0:00:08]} 51. f6 {[%clk 0:00:45]}  b5 {[%clk 0:00:08]} 52. Rb2 {[%clk 0:00:44]}  c5 {[%clk 0:00:07]} 53. f7 {[%clk 0:00:43]}  Nxf7 {[%clk 0:00:07]} 54. dxc5+ {[%clk 0:00:41]}  Rxc5 {[%clk 0:00:06]} 55. Kxf7 {[%clk 0:00:42]}  Rxc3 {[%clk 0:00:06]} 56. Kf6 {[%clk 0:00:41]}  Rf3+ {[%clk 0:00:05]} 57. Kg5 {[%clk 0:00:41]}  Kc5 {[%clk 0:00:05]} 58. Kg4 {[%clk 0:00:41]}  Rc3 {[%clk 0:00:04]} 59. Kf4 {[%clk 0:00:41]}  a5 {[%clk 0:00:04]} 60. Ke4 {[%clk 0:00:41]}  b4 {[%clk 0:00:02]} 61. Rh2 {[%clk 0:00:41]} 1-0


[Site "https://www.chess.com"]

[Event "Titled Tuesday Blitz March 14 Late 2023"]
[White "Rios Escobar, Adan"]
[Black "Carbone, Diego"]
[WhiteFideId "3403645"]
[BlackFideId "3002179"]
[WhiteElo "2370"]
[BlackElo "2266"]
[Result "0-1"]
[Round "10"]
[TimeControl "180+2"]
[Date "2023.03.14"]
[WhiteClock "0:00:01"]
[BlackClock "0:01:37"]

1. d4 {[%clk 0:03:00]}  Nf6 {[%clk 0:02:57]} 2. g3 {[%clk 0:03:00]}  e6 {[%clk 0:02:58]} 3. c4 {[%clk 0:02:59]}  d5 {[%clk 0:02:58]} 4. Bg2 {[%clk 0:02:57]}  dxc4 {[%clk 0:02:56]} 5. Nf3 {[%clk 0:02:51]}  a6 {[%clk 0:02:55]} 6. O-O {[%clk 0:02:46]}  Nc6 {[%clk 0:02:50]} 7. e3 {[%clk 0:02:33]}  Rb8 {[%clk 0:02:47]} 8. Nfd2 {[%clk 0:02:27]}  e5 {[%clk 0:02:41]} 9. Bxc6+ {[%clk 0:02:07]}  bxc6 {[%clk 0:02:42]} 10. dxe5 {[%clk 0:02:07]}  Ng4 {[%clk 0:02:41]} 11. Nxc4 {[%clk 0:02:05]}  Be6 {[%clk 0:02:40]} 12. Nbd2 {[%clk 0:02:01]}  Bb4 {[%clk 0:02:37]} 13. b3 {[%clk 0:01:56]}  h5 {[%clk 0:02:29]} 14. Qf3 {[%clk 0:01:08]}  h4 {[%clk 0:02:26]} 15. Qxc6+ {[%clk 0:01:04]}  Kf8 {[%clk 0:02:21]} 16. Bb2 {[%clk 0:00:34]}  Nxh2 {[%clk 0:02:19]} 17. Kg2 {[%clk 0:00:13]}  Bd5+ {[%clk 0:02:17]} 18. Qxd5 {[%clk 0:00:09]}  Qxd5+ {[%clk 0:02:18]} 19. Kxh2 {[%clk 0:00:10]}  hxg3+ {[%clk 0:02:10]} 20. Kxg3 {[%clk 0:00:11]}  Bxd2 {[%clk 0:02:06]} 21. Rad1 {[%clk 0:00:11]}  Qd3 {[%clk 0:01:59]} 22. Nxd2 {[%clk 0:00:06]}  Qg6+ {[%clk 0:01:53]} 23. Kf3 {[%clk 0:00:05]}  Qh5+ {[%clk 0:01:53]} 24. Ke4 {[%clk 0:00:05]}  Rd8 {[%clk 0:01:50]} 25. f4 {[%clk 0:00:01]}  Qg6+ {[%clk 0:01:42]} 26. Kf3 {[%clk 0:00:01]}  Rh3+ {[%clk 0:01:41]} 27. Kf2 {[%clk 0:00:01]}  Qg3+ {[%clk 0:01:37]} 28. Ke2 {[%clk 0:00:01]}  Qxe3# {[%clk 0:01:37]} 0-1


[Site "https://www.chess.com"]

[Event "Titled Tuesday Blitz March 14 Late 2023"]
[White "Meunier-Pion, Jean"]
[Black "Quispe Santacruz, Javier"]
[WhiteFideId "20685327"]
[BlackFideId "3800920"]
[WhiteElo "2124"]
[BlackElo "1875"]
[Result "1-0"]
[Round "10"]
[TimeControl "180+2"]
[Date "2023.03.14"]
[WhiteClock "0:01:38"]
[BlackClock "0:01:59"]

1. d4 {[%clk 0:03:00]}  Nf6 {[%clk 0:02:54]} 2. c4 {[%clk 0:03:00]}  e6 {[%clk 0:02:54]} 3. g3 {[%clk 0:03:00]}  Bb4+ {[%clk 0:02:53]} 4. Bd2 {[%clk 0:03:00]}  Bxd2+ {[%clk 0:02:53]} 5. Qxd2 {[%clk 0:02:57]}  O-O {[%clk 0:02:54]} 6. Bg2 {[%clk 0:02:57]}  d6 {[%clk 0:02:54]} 7. Nc3 {[%clk 0:02:55]}  e5 {[%clk 0:02:51]} 8. Nf3 {[%clk 0:02:50]}  Nc6 {[%clk 0:02:50]} 9. O-O {[%clk 0:02:49]}  Bg4 {[%clk 0:02:47]} 10. e3 {[%clk 0:02:35]}  Qe7 {[%clk 0:02:39]} 11. h3 {[%clk 0:02:34]}  Bh5 {[%clk 0:02:37]} 12. Rfe1 {[%clk 0:02:30]}  Rfe8 {[%clk 0:02:35]} 13. Nd5 {[%clk 0:02:28]}  Nxd5 {[%clk 0:02:33]} 14. cxd5 {[%clk 0:02:29]}  Nb8 {[%clk 0:02:31]} 15. dxe5 {[%clk 0:02:26]}  dxe5 {[%clk 0:02:32]} 16. e4 {[%clk 0:02:25]}  Nd7 {[%clk 0:02:30]} 17. Nh4 {[%clk 0:02:23]}  Bg6 {[%clk 0:02:27]} 18. Rac1 {[%clk 0:02:21]}  a5 {[%clk 0:02:08]} 19. Rxc7 {[%clk 0:02:12]}  Qd6 {[%clk 0:02:07]} 20. Rxb7 {[%clk 0:02:02]}  Nc5 {[%clk 0:02:07]} 21. Rb5 {[%clk 0:02:02]}  a4 {[%clk 0:01:59]} 22. Qb4 {[%clk 0:01:59]}  Rec8 {[%clk 0:01:58]} 23. Nxg6 {[%clk 0:01:40]}  hxg6 {[%clk 0:01:59]} 24. Rc1 {[%clk 0:01:38]} 1-0


[Site "https://www.chess.com"]

[Event "Titled Tuesday Blitz March 14 Late 2023"]
[White "Skaric, Djuro"]
[Black "Shapiro, Viktor"]
[WhiteFideId "934569"]
[BlackFideId "4175700"]
[WhiteElo "2282"]
[BlackElo "2152"]
[Result "0-1"]
[Round "10"]
[TimeControl "180+2"]
[Date "2023.03.14"]
[WhiteClock "0:00:37"]
[BlackClock "0:00:19"]

1. g3 {[%clk 0:03:00]}  Nf6 {[%clk 0:02:56]} 2. Bg2 {[%clk 0:03:00]}  c5 {[%clk 0:02:55]} 3. d3 {[%clk 0:03:01]}  Nc6 {[%clk 0:02:55]} 4. e4 {[%clk 0:03:01]}  g6 {[%clk 0:02:55]} 5. Nc3 {[%clk 0:03:01]}  Bg7 {[%clk 0:02:55]} 6. h3 {[%clk 0:03:00]}  d6 {[%clk 0:02:56]} 7. f4 {[%clk 0:03:01]}  O-O {[%clk 0:02:56]} 8. g4 {[%clk 0:03:00]}  Rb8 {[%clk 0:02:51]} 9. a4 {[%clk 0:03:00]}  a6 {[%clk 0:02:51]} 10. Nge2 {[%clk 0:03:00]}  h5 {[%clk 0:02:46]} 11. g5 {[%clk 0:02:59]}  Nh7 {[%clk 0:02:46]} 12. Nd5 {[%clk 0:02:57]}  e6 {[%clk 0:02:44]} 13. Ne3 {[%clk 0:02:57]}  b5 {[%clk 0:02:41]} 14. axb5 {[%clk 0:02:55]}  axb5 {[%clk 0:02:41]} 15. O-O {[%clk 0:02:55]}  Bd7 {[%clk 0:02:35]} 16. Ng3 {[%clk 0:02:52]}  b4 {[%clk 0:02:13]} 17. Nxh5 {[%clk 0:02:43]}  gxh5 {[%clk 0:02:12]} 18. Qxh5 {[%clk 0:02:42]}  Nd4 {[%clk 0:01:59]} 19. Rf2 {[%clk 0:02:38]}  f5 {[%clk 0:01:50]} 20. gxf6 {[%clk 0:02:31]}  Nxf6 {[%clk 0:01:47]} 21. Qg6 {[%clk 0:02:26]}  Be8 {[%clk 0:01:36]} 22. Qg3 {[%clk 0:02:21]}  Nh5 {[%clk 0:01:35]} 23. Qh2 {[%clk 0:02:21]}  Nxf4 {[%clk 0:01:29]} 24. Ng4 {[%clk 0:02:21]}  e5 {[%clk 0:01:22]} 25. Bf1 {[%clk 0:02:15]}  Qg5 {[%clk 0:01:18]} 26. Kh1 {[%clk 0:02:14]}  Bh5 {[%clk 0:01:03]} 27. Qg3 {[%clk 0:02:01]}  b3 {[%clk 0:00:53]} 28. c3 {[%clk 0:01:58]}  Nc2 {[%clk 0:00:53]} 29. Ra7 {[%clk 0:01:56]}  Rf7 {[%clk 0:00:49]} 30. Rxf7 {[%clk 0:01:40]}  Bxf7 {[%clk 0:00:49]} 31. Bxf4 {[%clk 0:01:30]}  exf4 {[%clk 0:00:49]} 32. Qxf4 {[%clk 0:01:14]}  Qxf4 {[%clk 0:00:48]} 33. Rxf4 {[%clk 0:01:14]}  Be6 {[%clk 0:00:38]} 34. e5 {[%clk 0:00:58]}  dxe5 {[%clk 0:00:27]} 35. Ra4 {[%clk 0:00:45]}  e4 {[%clk 0:00:23]} 36. Rxe4 {[%clk 0:00:44]}  Bd5 {[%clk 0:00:22]} 37. Bg2 {[%clk 0:00:40]}  Bxe4 {[%clk 0:00:23]} 38. Bxe4 {[%clk 0:00:40]}  Bxc3 {[%clk 0:00:21]} 39. Nf2 {[%clk 0:00:37]}  Bxb2 {[%clk 0:00:20]} 40. Nd1 {[%clk 0:00:37]}  Bd4 {[%clk 0:00:20]} 41. Kg2 {[%clk 0:00:37]}  b2 {[%clk 0:00:19]} 0-1


[Site "https://www.chess.com"]

[Event "Titled Tuesday Blitz March 14 Late 2023"]
[White "Davidson, Kevin"]
[Black "Smith, Garrett L"]
[WhiteFideId "2056810"]
[BlackFideId "2024829"]
[WhiteElo "2151"]
[BlackElo "2283"]
[Result "1-0"]
[Round "10"]
[TimeControl "180+2"]
[Date "2023.03.14"]
[WhiteClock "0:00:07"]
[BlackClock "0:00:10"]

1. e4 {[%clk 0:03:00]}  c5 {[%clk 0:03:00]} 2. Nf3 {[%clk 0:03:00]}  Nc6 {[%clk 0:03:00]} 3. d4 {[%clk 0:03:00]}  cxd4 {[%clk 0:03:01]} 4. Nxd4 {[%clk 0:03:01]}  e5 {[%clk 0:03:01]} 5. Nb5 {[%clk 0:03:01]}  d6 {[%clk 0:03:01]} 6. Bc4 {[%clk 0:03:01]}  Be7 {[%clk 0:02:55]} 7. O-O {[%clk 0:02:59]}  Nf6 {[%clk 0:02:49]} 8. Bg5 {[%clk 0:02:55]}  O-O {[%clk 0:02:36]} 9. Bxf6 {[%clk 0:02:54]}  gxf6 {[%clk 0:02:37]} 10. N5c3 {[%clk 0:02:39]}  Be6 {[%clk 0:02:35]} 11. Nd5 {[%clk 0:02:32]}  Rc8 {[%clk 0:02:34]} 12. Nbc3 {[%clk 0:02:28]}  Na5 {[%clk 0:02:27]} 13. Bb3 {[%clk 0:02:24]}  Kh8 {[%clk 0:02:20]} 14. Qh5 {[%clk 0:02:12]}  Rg8 {[%clk 0:02:15]} 15. Rad1 {[%clk 0:02:05]}  Nxb3 {[%clk 0:01:54]} 16. axb3 {[%clk 0:02:04]}  Bg4 {[%clk 0:01:48]} 17. Qxf7 {[%clk 0:02:04]}  Rg7 {[%clk 0:01:48]} 18. Qxg7+ {[%clk 0:01:53]}  Kxg7 {[%clk 0:01:48]} 19. Rd3 {[%clk 0:01:53]}  Be6 {[%clk 0:01:45]} 20. Rfd1 {[%clk 0:01:43]}  Rc6 {[%clk 0:01:41]} 21. Rg3+ {[%clk 0:01:35]}  Kf7 {[%clk 0:01:41]} 22. Rdd3 {[%clk 0:01:28]}  a6 {[%clk 0:01:38]} 23. h4 {[%clk 0:01:23]}  b5 {[%clk 0:01:35]} 24. h5 {[%clk 0:01:13]}  h6 {[%clk 0:01:35]} 25. Rg6 {[%clk 0:01:10]}  Qh8 {[%clk 0:01:19]} 26. Rf3 {[%clk 0:00:42]}  Rc8 {[%clk 0:00:58]} 27. Rfg3 {[%clk 0:00:41]}  Bf8 {[%clk 0:00:54]} 28. Rf3 {[%clk 0:00:35]}  Be7 {[%clk 0:00:48]} 29. Rfg3 {[%clk 0:00:35]}  Ke8 {[%clk 0:00:46]} 30. Rg7 {[%clk 0:00:29]}  Bf8 {[%clk 0:00:38]} 31. Nc7+ {[%clk 0:00:26]}  Rxc7 {[%clk 0:00:39]} 32. Rxc7 {[%clk 0:00:27]}  Kd8 {[%clk 0:00:33]} 33. Ra7 {[%clk 0:00:22]}  Bc8 {[%clk 0:00:31]} 34. Nd5 {[%clk 0:00:20]}  f5 {[%clk 0:00:26]} 35. f3 {[%clk 0:00:09]}  fxe4 {[%clk 0:00:26]} 36. fxe4 {[%clk 0:00:10]}  Bd7 {[%clk 0:00:16]} 37. Rg6 {[%clk 0:00:09]}  Qh7 {[%clk 0:00:14]} 38. Nf6 {[%clk 0:00:07]}  Qf7 {[%clk 0:00:11]} 39. Rxd7+ {[%clk 0:00:06]}  Qxd7 {[%clk 0:00:11]} 40. Nxd7 {[%clk 0:00:07]}  Kxd7 {[%clk 0:00:12]} 41. Kf2 {[%clk 0:00:07]}  Ke7 {[%clk 0:00:11]} 42. c4 {[%clk 0:00:07]}  Kf7 {[%clk 0:00:11]} 43. Kf3 {[%clk 0:00:06]}  Be7 {[%clk 0:00:10]} 44. Kg4 {[%clk 0:00:06]}  Bg5 {[%clk 0:00:10]} 45. Kf5 {[%clk 0:00:07]}  Bc1 {[%clk 0:00:10]} 46. Rxd6 {[%clk 0:00:07]}  Bxb2 {[%clk 0:00:10]} 47. Rxa6 {[%clk 0:00:07]} 1-0


[Site "https://www.chess.com"]